[Event "Championnat d'Europe de Blitz"]
[Date "2024.12.09"]
[White "Gaponenko, Inna"]
[Black "Baskin, Robert"]
[WhiteElo "2343"]
[BlackElo "2442"]
[Round "5.43"]
[Result "1/2-1/2"]
[TimeControl "180+2"]

1. e4 {[%clk 00:03:03]} e5 {[%emt 00:00:03] [%clk 00:03:03]} 2. Nf3 {[%clk
00:03:04]} Nc6 {[%emt 00:00:01] [%clk 00:03:04]} 3. Bb5 {[%emt 00:00:06] [%clk
00:02:59]} a6 {[%emt 00:00:01] [%clk 00:03:05]} 4. Bxc6 {[%clk 00:03:00]} dxc6
{[%clk 00:03:05]} 5. O-O {[%emt 00:00:02] [%clk 00:03:01]} Qf6 {[%emt 00:00:05]
[%clk 00:03:02]} 6. d4 {[%emt 00:00:02] [%clk 00:03:01]} exd4 {[%emt 00:00:01]
[%clk 00:03:03]} 7. Bg5 {[%clk 00:03:02]} Qd6 {[%emt 00:00:03] [%clk 00:03:02]}
8. Nxd4 {[%clk 00:03:03]} Bd7 {[%emt 00:00:12] [%clk 00:02:53]} 9. Nc3 {[%emt
00:00:02] [%clk 00:03:03]} Be7 {[%emt 00:00:06] [%clk 00:02:48]} 10. Bxe7 {[%emt
00:00:02] [%clk 00:03:03]} Nxe7 {[%emt 00:00:11] [%clk 00:02:40]} 11. Qd3 {[%clk
00:03:04]} O-O-O {[%emt 00:00:13] [%clk 00:02:29]} 12. Rad1 {[%emt 00:00:02]
[%clk 00:03:03]} c5 {[%emt 00:00:21] [%clk 00:02:12]} 13. Nb3 {[%clk 00:03:04]}
Qxd3 {[%emt 00:00:04] [%clk 00:02:11]} 14. cxd3 {[%emt 00:00:01] [%clk
00:03:04]} b6 {[%emt 00:00:04] [%clk 00:02:08]} 15. d4 {[%emt 00:00:42] [%clk
00:02:25]} cxd4 {[%emt 00:00:02] [%clk 00:02:08]} 16. Nxd4 {[%emt 00:00:06]
[%clk 00:02:21]} f6 {[%emt 00:00:18] [%clk 00:01:53]} 17. Rd2 {[%emt 00:00:05]
[%clk 00:02:17]} c5 {[%emt 00:00:16] [%clk 00:01:39]} 18. Nde2 {[%emt 00:00:03]
[%clk 00:02:16]} Be6 {[%emt 00:00:04] [%clk 00:01:37]} 19. Rfd1 {[%emt 00:00:03]
[%clk 00:02:15]} Rxd2 {[%emt 00:00:07] [%clk 00:01:31]} 20. Rxd2 {[%clk
00:02:16]} Rd8 {[%emt 00:00:02] [%clk 00:01:32]} 21. Rxd8+ {[%emt 00:00:04]
[%clk 00:02:14]} Kxd8 {[%clk 00:01:33]} 22. Nf4 {[%emt 00:00:09] [%clk
00:02:07]} Bf7 {[%clk 00:01:34]} 23. Kf1 {[%emt 00:00:02] [%clk 00:02:08]} g5
{[%emt 00:00:10] [%clk 00:01:26]} 24. Nd3 {[%emt 00:00:15] [%clk 00:01:55]} Kc7
{[%emt 00:00:14] [%clk 00:01:14]} 25. Ke2 {[%emt 00:00:01] [%clk 00:01:56]} Kd6
{[%emt 00:00:04] [%clk 00:01:12]} 26. Ke3 {[%emt 00:00:03] [%clk 00:01:55]} Ng6
{[%emt 00:00:10] [%clk 00:01:04]} 27. g3 {[%emt 00:00:08] [%clk 00:01:49]} b5
{[%emt 00:00:02] [%clk 00:01:05]} 28. a3 {[%emt 00:00:01] [%clk 00:01:49]} Bc4
{[%emt 00:00:08] [%clk 00:00:59]} 29. Nc1 {[%emt 00:00:39] [%clk 00:01:13]} Ne5
{[%emt 00:00:04] [%clk 00:00:56]} 30. f3 {[%emt 00:00:05] [%clk 00:01:10]} Be6
{[%emt 00:00:11] [%clk 00:00:48]} 31. b3 {[%emt 00:00:09] [%clk 00:01:03]} b4
{[%emt 00:00:03] [%clk 00:00:46]} 32. axb4 {[%clk 00:01:04]} cxb4 {[%emt
00:00:02] [%clk 00:00:47]} 33. N3e2 {[%emt 00:00:11] [%clk 00:00:54]} a5 {[%emt
00:00:04] [%clk 00:00:45]} 34. Nd4 {[%clk 00:00:55]} Bd7 {[%emt 00:00:01] [%clk
00:00:46]} 35. Nd3 {[%emt 00:00:09] [%clk 00:00:48]} Nxd3 {[%emt 00:00:17] [%clk
00:00:32]} 36. Kxd3 {[%clk 00:00:48]} Kc5 {[%clk 00:00:34]} 37. f4 {[%emt
00:00:10] [%clk 00:00:41]} gxf4 {[%clk 00:00:35]} 38. gxf4 {[%clk 00:00:42]} Bg4
{[%emt 00:00:05] [%clk 00:00:32]} 39. Nc2 {[%emt 00:00:04] [%clk 00:00:41]} Bd1
{[%emt 00:00:03] [%clk 00:00:30]} 40. Nd4 {[%emt 00:00:02] [%clk 00:00:41]} a4
{[%emt 00:00:06] [%clk 00:00:26]} 41. bxa4 {[%clk 00:00:42]} Bxa4 {[%emt
00:00:02] [%clk 00:00:26]} 42. e5 {[%emt 00:00:05] [%clk 00:00:39]} fxe5 {[%clk
00:00:28]} 43. fxe5 {[%clk 00:00:40]} Be8 {[%emt 00:00:07] [%clk 00:00:22]} 44.
e6 {[%emt 00:00:04] [%clk 00:00:38]} Bg6+ {[%emt 00:00:01] [%clk 00:00:23]} 45.
Ke3 {[%emt 00:00:04] [%clk 00:00:36]} Kd5 {[%emt 00:00:03] [%clk 00:00:22]} 46.
h4 {[%emt 00:00:05] [%clk 00:00:33]} Kc4 {[%emt 00:00:06] [%clk 00:00:18]} 47.
e7 {[%emt 00:00:12] [%clk 00:00:23]} Kd5 {[%emt 00:00:06] [%clk 00:00:14]} 48.
Nb3 {[%emt 00:00:11] [%clk 00:00:15]} Kd6 {[%emt 00:00:03] [%clk 00:00:12]} 49.
Nd4 {[%emt 00:00:06] [%clk 00:00:11]} Be8 {[%emt 00:00:03] [%clk 00:00:11]} 50.
Kd3 {[%emt 00:00:01] [%clk 00:00:11]} Kxe7 {[%emt 00:00:03] [%clk 00:00:11]} 51.
Kc4 {[%clk 00:00:12]} Kf6 {[%emt 00:00:02] [%clk 00:00:11]} 52. Kxb4 {[%clk
00:00:13]} Ke5 {[%clk 00:00:13]} 53. Kc3 {[%emt 00:00:03] [%clk 00:00:11]} Kf4
{[%emt 00:00:02] [%clk 00:00:13]} 54. Kd3 {[%clk 00:00:12]} Kg4 {[%emt 00:00:02]
[%clk 00:00:13]} 55. Ke3 {[%emt 00:00:01] [%clk 00:00:13]} Kxh4 {[%emt 00:00:03]
[%clk 00:00:13]} 56. Kf2 {[%clk 00:00:14]} Kg4 {[%emt 00:00:04] [%clk 00:00:12]}
57. Kg2 {[%emt 00:00:03] [%clk 00:00:13]} h5 {[%emt 00:00:02] [%clk 00:00:12]}
58. Kh2 {[%emt 00:00:03] [%clk 00:00:12]} Bd7 {[%clk 00:00:13]} 59. Ne2 {[%emt
00:00:02] [%clk 00:00:12]} Bb5 {[%emt 00:00:04] [%clk 00:00:12]} 60. Ng3 {[%emt
00:00:03] [%clk 00:00:10]} h4 {[%emt 00:00:02] [%clk 00:00:12]} 61. Ne4 {[%emt
00:00:02] [%clk 00:00:10]} Bc6 {[%emt 00:00:02] [%clk 00:00:11]} 62. Nf2+ {[%emt
00:00:02] [%clk 00:00:11]} Kg5 {[%emt 00:00:02] [%clk 00:00:10]} 63. Nh3+ {[%emt
00:00:02] [%clk 00:00:11]} Kf5 {[%clk 00:00:11]} 64. Nf2 {[%emt 00:00:02] [%clk
00:00:12]} Bb5 {[%emt 00:00:02] [%clk 00:00:11]} 65. Kh3 {[%emt 00:00:01] [%clk
00:00:12]} Ke5 {[%emt 00:00:08] [%clk 00:00:07]} 1/2-1/2

[Site "Europe Echecs"]

[Event "Championnat d'Europe de Blitz"]
[Date "2024.12.09"]
[White "Cvitan, Ognjen"]
[Black "Manea, Alexandru"]
[WhiteElo "2413"]
[BlackElo "2272"]
[Round "5.44"]
[Result "1-0"]
[TimeControl "180+2"]

1. d4 {[%emt 00:00:02] [%clk 00:03:02]} Nf6 {[%emt 00:00:03] [%clk 00:03:04]} 2.
c4 {[%clk 00:03:02]} c6 {[%clk 00:03:04]} 3. Nc3 {[%emt 00:00:03] [%clk
00:03:01]} d5 {[%clk 00:03:06]} 4. Nf3 {[%emt 00:00:02] [%clk 00:03:02]} a6
{[%clk 00:03:07]} 5. cxd5 {[%emt 00:00:05] [%clk 00:02:59]} cxd5 {[%clk
00:03:08]} 6. Bf4 {[%emt 00:00:03] [%clk 00:02:57]} Nc6 {[%clk 00:03:09]} 7. Rc1
{[%emt 00:00:03] [%clk 00:02:56]} Bf5 {[%emt 00:00:02] [%clk 00:03:09]} 8. e3
{[%emt 00:00:02] [%clk 00:02:57]} e6 {[%clk 00:03:10]} 9. Qb3 {[%emt 00:00:02]
[%clk 00:02:58]} Ra7 {[%emt 00:00:30] [%clk 00:02:41]} 10. Be2 {[%emt 00:00:11]
[%clk 00:02:50]} Bd6 {[%emt 00:00:07] [%clk 00:02:36]} 11. Bxd6 {[%emt 00:00:17]
[%clk 00:02:35]} Qxd6 {[%emt 00:00:01] [%clk 00:02:36]} 12. O-O {[%emt 00:00:05]
[%clk 00:02:32]} O-O {[%emt 00:00:01] [%clk 00:02:36]} 13. Na4 {[%emt 00:00:03]
[%clk 00:02:32]} Nd7 {[%emt 00:00:15] [%clk 00:02:23]} 14. Nc5 {[%emt 00:00:02]
[%clk 00:02:31]} Nxc5 {[%emt 00:00:49] [%clk 00:01:37]} 15. Rxc5 {[%emt
00:00:01] [%clk 00:02:30]} Rd8 {[%emt 00:00:38] [%clk 00:01:02]} 16. Rfc1 {[%emt
00:00:23] [%clk 00:02:09]} h6 {[%emt 00:00:03] [%clk 00:01:01]} 17. h3 {[%emt
00:00:02] [%clk 00:02:09]} g5 {[%emt 00:00:03] [%clk 00:01:00]} 18. Bd1 {[%emt
00:00:21] [%clk 00:01:50]} Kg7 {[%emt 00:00:05] [%clk 00:00:57]} 19. Qb6 {[%emt
00:00:09] [%clk 00:01:43]} Raa8 {[%emt 00:00:41] [%clk 00:00:20]} 20. Qxb7
{[%emt 00:00:07] [%clk 00:01:38]} Ne7 {[%clk 00:00:21]} 21. Qc7 {[%emt 00:00:09]
[%clk 00:01:31]} Qxc7 {[%emt 00:00:05] [%clk 00:00:19]} 22. Rxc7 {[%emt
00:00:01] [%clk 00:01:32]} Kf8 {[%clk 00:00:20]} 23. Ne5 {[%emt 00:00:03] [%clk
00:01:31]} Rd6 {[%emt 00:00:07] [%clk 00:00:16]} 24. Bh5 {[%emt 00:00:20] [%clk
00:01:12]} f6 {[%emt 00:00:16] [%clk 00:00:03]} 25. Nd7+ {[%emt 00:00:09] [%clk
00:01:04]} Kg7 26. Rb7 {[%emt 00:00:14] [%clk 00:00:52]} Bg6 27. Bxg6 {[%clk
00:00:46]} Kxg6 {[%clk 00:00:05]} 28. Rcc7 {[%emt 00:00:05] [%clk 00:00:43]} 1-0

[Site "Europe Echecs"]

[Event "Championnat d'Europe de Blitz"]
[Date "2024.12.09"]
[White "Nikolovski, Nikola"]
[Black "Veljanoski, Andrej"]
[WhiteElo "2407"]
[BlackElo "2304"]
[Round "5.45"]
[Result "1-0"]
[TimeControl "180+2"]

1. f4 {[%emt 00:00:01] [%clk 00:03:02]} e5 {[%emt 00:00:04] [%clk 00:03:00]} 2.
fxe5 {[%clk 00:03:03]} d6 {[%clk 00:03:02]} 3. Nf3 {[%emt 00:00:02] [%clk
00:03:04]} dxe5 {[%emt 00:00:04] [%clk 00:03:00]} 4. e4 {[%emt 00:00:01] [%clk
00:03:05]} Nc6 {[%emt 00:00:01] [%clk 00:03:01]} 5. Bb5 {[%emt 00:00:02] [%clk
00:03:06]} Bc5 {[%emt 00:00:12] [%clk 00:02:49]} 6. Bxc6+ {[%emt 00:00:21] [%clk
00:02:47]} bxc6 {[%emt 00:00:02] [%clk 00:02:50]} 7. d3 {[%emt 00:00:01] [%clk
00:02:48]} Be6 {[%emt 00:00:13] [%clk 00:02:39]} 8. Qe2 {[%emt 00:00:04] [%clk
00:02:46]} f6 {[%emt 00:00:21] [%clk 00:02:20]} 9. Be3 {[%emt 00:00:08] [%clk
00:02:40]} Bb6 {[%emt 00:00:09] [%clk 00:02:12]} 10. O-O {[%emt 00:00:03] [%clk
00:02:39]} Ne7 {[%clk 00:02:13]} 11. Nbd2 {[%emt 00:00:15] [%clk 00:02:27]} O-O
{[%emt 00:00:07] [%clk 00:02:08]} 12. Kh1 {[%emt 00:00:02] [%clk 00:02:28]} Nc8
{[%emt 00:00:19] [%clk 00:01:51]} 13. Nh4 {[%emt 00:00:12] [%clk 00:02:18]} Nd6
{[%emt 00:00:04] [%clk 00:01:48]} 14. a4 {[%emt 00:00:15] [%clk 00:02:05]} a5
{[%emt 00:00:04] [%clk 00:01:46]} 15. b3 {[%emt 00:00:22] [%clk 00:01:45]} Qd7
{[%emt 00:00:14] [%clk 00:01:34]} 16. Qf2 {[%emt 00:00:27] [%clk 00:01:21]} Rab8
{[%emt 00:00:22] [%clk 00:01:14]} 17. Qg3 {[%emt 00:00:01] [%clk 00:01:22]} Kh8
{[%emt 00:00:21] [%clk 00:00:55]} 18. Rae1 {[%emt 00:00:18] [%clk 00:01:05]}
Rbe8 {[%emt 00:00:32] [%clk 00:00:25]} 19. h3 {[%emt 00:00:07] [%clk 00:01:00]}
Bd4 {[%emt 00:00:01] [%clk 00:00:27]} 20. Rf2 {[%emt 00:00:14] [%clk 00:00:47]}
Bxe3 {[%emt 00:00:08] [%clk 00:00:21]} 21. Qxe3 {[%emt 00:00:03] [%clk
00:00:45]} Nf7 {[%emt 00:00:05] [%clk 00:00:19]} 22. Qg3 {[%emt 00:00:14] [%clk
00:00:33]} Ng5 {[%emt 00:00:04] [%clk 00:00:17]} 23. Ref1 {[%emt 00:00:05] [%clk
00:00:30]} Rg8 {[%emt 00:00:06] [%clk 00:00:13]} 24. Nhf3 {[%emt 00:00:03] [%clk
00:00:29]} Nxf3 {[%emt 00:00:02] [%clk 00:00:13]} 25. Nxf3 {[%emt 00:00:04]
[%clk 00:00:27]} Rd8 {[%emt 00:00:06] [%clk 00:00:09]} 26. Nh4 {[%emt 00:00:03]
[%clk 00:00:25]} Rge8 {[%clk 00:00:11]} 27. Nf3 {[%emt 00:00:04] [%clk
00:00:23]} Qe7 {[%emt 00:00:03] [%clk 00:00:10]} 28. Nd2 {[%emt 00:00:02] [%clk
00:00:23]} Qf7 {[%clk 00:00:11]} 29. Rf3 {[%emt 00:00:02] [%clk 00:00:23]} Qg6
{[%emt 00:00:01] [%clk 00:00:12]} 30. Qf2 {[%emt 00:00:01] [%clk 00:00:23]} Rd4
{[%emt 00:00:02] [%clk 00:00:13]} 31. Qe3 {[%emt 00:00:03] [%clk 00:00:21]} h6
{[%emt 00:00:07] [%clk 00:00:09]} 32. R1f2 {[%emt 00:00:02] [%clk 00:00:21]} Qg5
{[%emt 00:00:01] [%clk 00:00:10]} 33. Qe1 {[%emt 00:00:01] [%clk 00:00:22]} Qg6
{[%clk 00:00:11]} 34. Nf1 {[%emt 00:00:01] [%clk 00:00:23]} Rdd8 {[%emt
00:00:02] [%clk 00:00:11]} 35. Qxa5 {[%emt 00:00:02] [%clk 00:00:23]} Qf7 {[%emt
00:00:07] [%clk 00:00:06]} 36. Ne3 {[%emt 00:00:03] [%clk 00:00:22]} Qd7 {[%emt
00:00:02] [%clk 00:00:06]} 37. Qc3 {[%emt 00:00:03] [%clk 00:00:21]} Qd6 {[%emt
00:00:03] [%clk 00:00:05]} 38. Rf1 {[%clk 00:00:22]} Rb8 {[%clk 00:00:07]} 39.
Ra1 {[%emt 00:00:06] [%clk 00:00:18]} Ra8 {[%emt 00:00:04] [%clk 00:00:05]} 40.
Rff1 {[%emt 00:00:02] [%clk 00:00:17]} Reb8 {[%emt 00:00:02] [%clk 00:00:05]}
41. Rf3 {[%emt 00:00:02] [%clk 00:00:18]} Rb4 {[%emt 00:00:01] [%clk 00:00:07]}
42. Raf1 {[%emt 00:00:03] [%clk 00:00:16]} Ra5 {[%emt 00:00:03] [%clk 00:00:06]}
43. Rg3 {[%emt 00:00:05] [%clk 00:00:12]} Qd4 {[%clk 00:00:07]} 44. Qe1 {[%emt
00:00:02] [%clk 00:00:13]} Rc5 {[%clk 00:00:08]} 45. Rf2 {[%emt 00:00:07] [%clk
00:00:08]} Rb8 {[%emt 00:00:04] [%clk 00:00:06]} 46. Kh2 {[%emt 00:00:05]} Qb2
{[%clk 00:00:07]} 47. Qf1 {[%emt 00:00:03] [%clk 00:00:05]} Rf8 {[%emt 00:00:02]
[%clk 00:00:07]} 48. Qe1 {[%emt 00:00:02] [%clk 00:00:04]} Qd4 {[%emt 00:00:01]
[%clk 00:00:08]} 49. Nd1 {[%emt 00:00:02] [%clk 00:00:05]} Qa1 {[%emt 00:00:02]
[%clk 00:00:08]} 50. b4 {[%emt 00:00:04] [%clk 00:00:04]} Rc3 {[%emt 00:00:06]
[%clk 00:00:03]} 51. Qxc3 {[%emt 00:00:02] [%clk 00:00:04]} Qxd1 {[%clk
00:00:04]} 52. Qd2 {[%emt 00:00:02] [%clk 00:00:04]} Qa1 {[%emt 00:00:01] [%clk
00:00:05]} 53. a5 {[%clk 00:00:05]} Qa3 {[%emt 00:00:02] [%clk 00:00:06]} 54.
Rgf3 {[%emt 00:00:01] [%clk 00:00:05]} Rd8 {[%emt 00:00:01] [%clk 00:00:07]} 55.
Rg3 {[%emt 00:00:02] [%clk 00:00:05]} Rb8 {[%emt 00:00:01] [%clk 00:00:08]} 56.
Rxf6 {[%emt 00:00:05]} Bg8 {[%emt 00:00:02] [%clk 00:00:06]} 57. Rxh6+ {[%emt
00:00:02] [%clk 00:00:04]} Bh7 {[%emt 00:00:02]} 58. Rh4 {[%clk 00:00:04]} Qxb4
{[%emt 00:00:02] [%clk 00:00:08]} 59. Qg5 {[%emt 00:00:01] [%clk 00:00:04]} Qf8
{[%emt 00:00:04] [%clk 00:00:06]} 60. Qh5 {[%emt 00:00:01] [%clk 00:00:04]} Qg8
{[%clk 00:00:08]} 61. Qxe5 {[%emt 00:00:01] [%clk 00:00:05]} Rb5 {[%clk
00:00:09]} 62. Qc3 {[%emt 00:00:03] [%clk 00:00:05]} c5 {[%emt 00:00:06] [%clk
00:00:04]} 63. Rhg4 {[%emt 00:00:01] [%clk 00:00:06]} c4 {[%emt 00:00:02] [%clk
00:00:04]} 64. Rxg7 {[%emt 00:00:02] [%clk 00:00:02]} 1-0

[Site "Europe Echecs"]

[Event "Championnat d'Europe de Blitz"]
[Date "2024.12.09"]
[White "Tomasi, Elise"]
[Black "Mohr, Georg"]
[WhiteElo "2073"]
[BlackElo "2385"]
[Round "5.46"]
[Result "0-1"]
[TimeControl "180+2"]

1. d4 {[%emt 00:00:05] [%clk 00:03:02]} Nf6 {[%clk 00:03:03]} 2. Nf3 {[%clk
00:03:02]} c5 {[%emt 00:00:07] [%clk 00:02:58]} 3. d5 {[%emt 00:00:03] [%clk
00:03:02]} g6 {[%emt 00:00:03] [%clk 00:02:57]} 4. Nc3 {[%emt 00:00:08] [%clk
00:02:56]} Bg7 {[%emt 00:00:01] [%clk 00:02:57]} 5. a4 {[%emt 00:00:07] [%clk
00:02:52]} O-O {[%emt 00:00:02] [%clk 00:02:57]} 6. g3 {[%emt 00:00:02] [%clk
00:02:52]} d6 {[%emt 00:00:06] [%clk 00:02:54]} 7. Bg2 {[%emt 00:00:02] [%clk
00:02:52]} e6 {[%emt 00:00:01] [%clk 00:02:54]} 8. Nd2 {[%emt 00:00:11] [%clk
00:02:43]} exd5 {[%emt 00:00:15] [%clk 00:02:42]} 9. Nxd5 {[%emt 00:00:02] [%clk
00:02:43]} Nc6 {[%emt 00:00:02] [%clk 00:02:42]} 10. O-O {[%emt 00:00:30] [%clk
00:02:15]} Nxd5 {[%emt 00:00:11] [%clk 00:02:33]} 11. Bxd5 {[%emt 00:00:02]
[%clk 00:02:14]} Ne7 {[%emt 00:00:02] [%clk 00:02:34]} 12. Bg2 {[%emt 00:00:11]
[%clk 00:02:05]} d5 {[%emt 00:00:02] [%clk 00:02:34]} 13. Nb3 {[%emt 00:00:19]
[%clk 00:01:49]} b6 {[%emt 00:00:10] [%clk 00:02:25]} 14. c4 {[%emt 00:00:16]
[%clk 00:01:34]} Be6 {[%emt 00:00:10] [%clk 00:02:18]} 15. cxd5 {[%emt 00:00:17]
[%clk 00:01:19]} Nxd5 {[%emt 00:00:08] [%clk 00:02:11]} 16. a5 {[%emt 00:00:28]
[%clk 00:00:54]} Rc8 {[%emt 00:00:13] [%clk 00:02:00]} 17. axb6 {[%emt 00:00:11]
[%clk 00:00:46]} axb6 {[%clk 00:02:01]} 18. Nd2 {[%emt 00:00:08] [%clk
00:00:40]} Nb4 {[%emt 00:00:10] [%clk 00:01:52]} 19. Ne4 {[%emt 00:00:07] [%clk
00:00:36]} Qxd1 {[%emt 00:00:48] [%clk 00:01:07]} 20. Rxd1 {[%emt 00:00:01]
[%clk 00:00:36]} Rfd8 {[%emt 00:00:01] [%clk 00:01:07]} 21. Rf1 {[%emt 00:00:23]
[%clk 00:00:16]} h6 {[%emt 00:00:06] [%clk 00:01:03]} 22. Nc3 {[%emt 00:00:08]
[%clk 00:00:11]} Bc4 {[%emt 00:00:16] [%clk 00:00:49]} 23. Bf3 {[%emt 00:00:08]
[%clk 00:00:05]} Nc2 {[%emt 00:00:09]} 24. Ra7 {[%clk 00:00:05]} Nd4 {[%emt
00:00:02] [%clk 00:00:44]} 25. Bf4 {[%emt 00:00:02] [%clk 00:00:05]} Nxf3+
{[%emt 00:00:02] [%clk 00:00:43]} 26. exf3 {[%emt 00:00:02] [%clk 00:00:06]}
Bxf1 {[%emt 00:00:01] [%clk 00:00:44]} 27. Kxf1 {[%emt 00:00:02] [%clk
00:00:05]} g5 {[%emt 00:00:05] [%clk 00:00:41]} 28. Bc7 {[%emt 00:00:03] [%clk
00:00:05]} Rd2 {[%emt 00:00:05] [%clk 00:00:38]} 29. Bxb6 {[%emt 00:00:04] [%clk
00:00:03]} Rxb2 {[%clk 00:00:38]} 30. Na4 {[%clk 00:00:04]} Ra2 {[%emt 00:00:02]
[%clk 00:00:37]} 31. Ra5 {[%emt 00:00:04] [%clk 00:00:03]} c4 {[%emt 00:00:02]
[%clk 00:00:37]} 0-1

[Site "Europe Echecs"]

[Event "Championnat d'Europe de Blitz"]
[Date "2024.12.09"]
[White "Horvath, Dominik"]
[Black "Nicholas, Koichi B"]
[WhiteElo "2542"]
[BlackElo "2069"]
[Round "5.47"]
[Result "1-0"]
[TimeControl "180+2"]

1. Nc3 {[%emt 00:13:40] [%clk 00:03:04]} d5 {[%emt 00:00:06] [%clk 00:02:58]} 2.
e4 {[%emt 00:00:07] [%clk 00:02:59]} d4 {[%emt 00:00:13] [%clk 00:02:48]} 3.
Nce2 {[%emt 00:00:01] [%clk 00:02:59]} e5 {[%emt 00:00:05] [%clk 00:02:46]} 4.
Ng3 {[%emt 00:00:01] [%clk 00:02:59]} Be6 {[%emt 00:00:14] [%clk 00:02:35]} 5.
c3 {[%emt 00:00:12] [%clk 00:02:48]} dxc3 {[%emt 00:00:29] [%clk 00:02:08]} 6.
bxc3 {[%emt 00:00:02] [%clk 00:02:48]} Bc5 {[%emt 00:00:03] [%clk 00:02:07]} 7.
Nf3 {[%emt 00:00:02] [%clk 00:02:48]} f6 {[%emt 00:00:15] [%clk 00:01:55]} 8. d4
{[%emt 00:00:01] [%clk 00:02:48]} exd4 {[%emt 00:00:04] [%clk 00:01:53]} 9. cxd4
{[%emt 00:00:01] [%clk 00:02:49]} Bb4+ {[%emt 00:00:02] [%clk 00:01:54]} 10. Bd2
{[%clk 00:02:49]} Bxd2+ {[%emt 00:00:10] [%clk 00:01:47]} 11. Qxd2 {[%clk
00:02:50]} Ne7 {[%emt 00:00:10] [%clk 00:01:40]} 12. Rb1 {[%emt 00:00:07] [%clk
00:02:45]} Qc8 {[%emt 00:00:14] [%clk 00:01:27]} 13. d5 {[%emt 00:00:35] [%clk
00:02:12]} Bf7 {[%emt 00:00:04] [%clk 00:01:25]} 14. Qb4 {[%emt 00:00:02] [%clk
00:02:12]} b6 {[%emt 00:00:28] [%clk 00:00:59]} 15. Bb5+ {[%emt 00:00:08] [%clk
00:02:05]} c6 {[%emt 00:00:15] [%clk 00:00:47]} 16. dxc6 {[%emt 00:00:02] [%clk
00:02:05]} Nbxc6 {[%emt 00:00:03] [%clk 00:00:46]} 17. Nf5 {[%emt 00:00:21]
[%clk 00:01:46]} Kd8 {[%emt 00:00:43] [%clk 00:00:06]} 18. Rd1+ {[%emt 00:00:07]
[%clk 00:01:40]} Kc7 {[%emt 00:00:05] [%clk 00:00:04]} 19. Qd6+ {[%emt 00:00:01]
[%clk 00:01:40]} Kb7 {[%emt 00:00:05] [%clk 00:00:03]} 20. Nxe7 {[%emt 00:00:04]
[%clk 00:01:40]} 1-0

[Site "Europe Echecs"]